[Event "2nd Serbia Open Masters 2022"]
[Site "Novi Sad"]
[Date "2022.06.28"]
[Round "1.19"]
[White "Harsha Bharathakoti"]
[Black "Alexiadis, Hristos"]
[Result "1-0"]
[ECO "D45"]
[WhiteElo "2547"]
[BlackElo "2291"]
[Annotator "TA"]
[PlyCount "65"]
[EventDate "2022.06.28"]
[EventType "swiss"]
[EventCountry "SRB"]
[SourceTitle "playchess.com"]
[Source "ChessBase"]
[SourceQuality "1"]
[TimeControl "40/5400+30:900+30"]

{[%evp 19,65,0,0,9,12,-11,0,-15,17,16,130,143,133,129,139,110,142,137,148,146,175,178,190,176,268,286,288,227,258,264,268,269,289,295,292,289,311,308,331,329,339,335,429,381,384,367,341,327]} 1. d4 {[%emt 0:00:27]} d5 {[%emt 0:00:08]} 2. c4 {[%emt 0:00:14]} c6 {[%emt 0:00:06]} 3. Nf3 {[%emt 0:04:30]} Nf6 {[%emt 0:00:13]} 4. Nc3 {[%emt 0:02:01]} e6 {[%emt 0:00:21]} 5. e3 {[%emt 0:01:32]} Nbd7 {[%emt 0:03:00]} 6. Qc2 {[%emt 0:02:36]} Bd6 {[%emt 0:00:08]} 7. b3 {[%emt 0:00:03]} O-O {[%emt 0:04:52]} 8. Be2 {[%emt 0:00:04]} b6 {[%emt 0:00:04]} 9. O-O {[%emt 0:00:48]} Bb7 {[%emt 0:00:18]} 10. Bb2 {[%emt 0:00:05]} Rc8 {[%emt 0:03:29]} 11. Rad1 $1 {[%emt 0:09:58] 11.Rad1 scores better than 11.e4. D45: Semi-Slav: 5 e3.} Qe7 {[%emt 0:23:10]} 12. Rfe1 {[%emt 0:12:00]} c5 {[%emt 0:03:57]} 13. cxd5 {[%emt 0:06:06] The position is equal.} Nxd5 {[%emt 0:08:13]} 14. Nxd5 {[%emt 0:02:53]} Bxd5 {[%emt 0:00:08] [#]} (14... exd5 $11 {remains equal.} 15. Bb5 a6) 15. e4 $1 $16 {[%emt 0:02:23]} Bb7 {[%emt 0:06:04]} (15... cxd4 $2 16. Qd3 e5 17. exd5) 16. d5 {[%emt 0:00:49] aiming for dxe6.} e5 {[%emt 0:00:38] [#]} 17. Nd2 $146 {[%emt 0:06:00]} ({Predecessor:} 17. Bc4 a6 18. a4 Rfd8 19. g3 g6 20. Nh4 Nf6 21. Qe2 Ra8 22. f4 Ne8 23. Nf3 exf4 {1-0 (34) Matveeva,S (2379)-Zakurdjaeva,I (2280) St Petersburg 2010}) 17... Rcd8 {[%emt 0:10:19]} 18. Nc4 {[%emt 0:01:37]} Bc8 {[%emt 0:09:49]} 19. a4 {[%emt 0:04:25][%cal Ba2a4,Ba4a5][%mdl 32] White is more active.} g6 {[%emt 0:02:55]} 20. Qc3 {[%emt 0:04:32]} Rfe8 {[%emt 0:04:11]} 21. a5 {[%emt 0:15:05]} Ba6 {[%emt 0:00:50]} (21... Bb8 $142 22. axb6 axb6) 22. Nxd6 $18 {[%emt 0:00:17]} Bxe2 {[%emt 0:00:06]} 23. Nxf7 {[%emt 0:00:19]} ({Less strong is} 23. Rxe2 Qxd6 24. f3 Rb8 $16) 23... Bxd1 {[%emt 0:01:03]} 24. Nxd8 {[%emt 0:00:06]} Qxd8 {[%emt 0:00:07]} 25. Rxd1 {[%emt 0:00:03]} Qh4 {[%emt 0:00:53]} 26. Qc4 {[%emt 0:05:38]} bxa5 {[%emt 0:00:41]} 27. f3 {[%emt 0:02:03]} Qg5 {[%emt 0:05:13]} 28. Bc1 {[%emt 0:02:02]} Qe7 {[%emt 0:00:32]} 29. Bd2 {[%emt 0:00:38]} Nb6 {[%emt 0:02:15]} 30. Qb5 {[%emt 0:00:35]} c4 {[%emt 0:00:13]} 31. Bxa5 {[%emt 0:05:07]} cxb3 {[%emt 0:00:05]} 32. Bxb6 {[%emt 0:01:45]} axb6 {[%emt 0:00:57]} 33. Qxb6 {[%emt 0:00:18] White took control after the opening.  Weighted Error Value: White=0.06 (flawless) /Black=0.29 (precise)} ({Resist} 33. Qxb3 Qc5+ 34. Kh1 Kf8) 1-0

[Event "2nd Serbia Open Masters 2022"]
[Site "Novi Sad"]
[Date "2022.06.28"]
[Round "1.20"]
[White "Omorjan, Dejan"]
[Black "Perunovic, Milos"]
[Result "0-1"]
[ECO "D45"]
[WhiteElo "2339"]
[BlackElo "2544"]
[Annotator "TA"]
[PlyCount "70"]
[EventDate "2022.06.28"]
[EventType "swiss"]
[EventCountry "SRB"]
[SourceTitle "playchess.com"]
[Source "ChessBase"]
[SourceQuality "1"]
[TimeControl "40/5400+30:900+30"]

{[%evp 21,69,0,0,0,0,0,0,0,0,0,0,0,0,0,0,0,0,-14,-7,-18,0,-47,-45,-50,-47,-58,-26,-78,-15,-14,-13,-24,-6,-980,-979,-975,-978,-973,-972,-972,-970,-895,-882,-2010,-1973,-29997,-29998,-29998,-29999,-29999]} 1. d4 {[%emt 0:00:03]} Nf6 {[%emt 0:01:21]} 2. Nf3 {[%emt 0:00:01]} e6 {[%emt 0:01:58]} 3. c4 {[%emt 0:00:17]} d5 {[%emt 0:00:36]} 4. Nc3 {[%emt 0:00:21]} c6 {[%emt 0:00:51]} 5. e3 {[%emt 0:00:28]} Nbd7 {[%emt 0:00:14]} 6. Qc2 {[%emt 0:00:37]} Bd6 {[%emt 0:00:49]} 7. b3 {[%emt 0:00:30]} O-O {[%emt 0:00:40]} 8. Be2 {[%emt 0:00:27]} b6 {[%emt 0:01:03]} 9. O-O {[%emt 0:00:37]} Bb7 {[%emt 0:00:23]} 10. Bb2 {[%emt 0:00:28]} Qe7 {[%emt 0:00:43]} 11. a4 {[%emt 0:00:28]} a5 {[%emt 0:10:13]} 12. Rac1 {[%emt 0:03:29] D45: Semi-Slav: 5 e3.} Rac8 {[%emt 0:04:00]} 13. Qb1 {[%emt 0:02:13]} Rfe8 {[%emt 0:05:53]} 14. Rfd1 {[%emt 0:00:47] [#] The position is equal.} Bb8 $146 {[%emt 0:11:03]} ({Predecessor:} 14... h6 15. h3 Qf8 16. Qa1 Qe7 17. Qb1 Qf8 18. Qa1 Qe7 19. Qb1 {½-½ (19) Azarov,S (2570)-Checa,N (2485) Philadelphia 2018}) 15. Re1 {[%emt 0:05:19]} c5 {[%emt 0:12:12]} 16. Ba3 {[%emt 0:13:41]} Ne4 {[%emt 0:10:33]} 17. cxd5 {[%emt 0:10:27]} exd5 {[%emt 0:02:10]} 18. Bb5 {[%emt 0:01:48]} Red8 {[%emt 0:01:12]} 19. Ne2 {[%emt 0:17:24]} Ndf6 {[%emt 0:05:46][%cal Oe4f2]} 20. Nf4 {[%emt 0:05:45]} Ng4 {[%emt 0:06:46]} 21. Nd3 {[%emt 0:02:23]} (21. Rc2 $11 {is superior.}) 21... Ng5 $15 {[%emt 0:22:34] aiming for ...Nxf3+.} 22. Nde5 {[%emt 0:07:51]} Nxe5 {[%emt 0:00:00]} 23. Nxe5 {[%emt 0:00:33]} Qe6 {[%emt 0:00:00]} 24. Bd3 {[%emt 0:04:38]} (24. f4 $1 $11 {remains equal.} Ne4 25. Nf3) 24... g6 {[%emt 0:00:00]} (24... Bxe5 $17 25. dxe5 d4) 25. f3 $11 {[%emt 0:03:37]} Bxe5 {[%emt 0:00:00]} 26. dxe5 {[%emt 0:00:33]} d4 {[%emt 0:00:00][%cal Ob7f3]} ({Much less strong is} 26... Qxe5 27. f4 Nh3+ 28. gxh3 $16) 27. h4 $2 {[%emt 0:16:57][%mdl 8192] [#] This costs White the game.} (27. Qb2 $11) 27... Nxf3+ $1 $19 {[%emt 0:00:00][%mdl 512]} 28. gxf3 {[%emt 0:00:07]} Bxf3 {[%emt 0:00:00]} 29. Kf2 {[%emt 0:01:51]} Qg4 {[%emt 0:00:17][%csl Gf3][%cal Rg4g2]} 30. Rg1 {[%emt 0:00:51] Prevents Qg2+.} dxe3+ {[%emt 0:00:06]} 31. Kxe3 {[%emt 0:00:10]} Qh3 {[%emt 0:00:19][%cal Of3e4]} 32. Kf2 {[%emt 0:01:15] [#]} Be4 $1 {[%emt 0:01:02][%mdl 512] ( -> ...Qf3+)} 33. Bxe4 {[%emt 0:00:32]} (33. Be2 Qh2+) 33... Rd2+ {[%emt 0:00:06] Black mates.} 34. Ke1 {[%emt 0:00:09]} Qe3+ {[%emt 0:00:05]} 35. Kf1 {[%emt 0:00:04]} Qf2# {[%emt 0:00:05] Weighted Error Value: White=0.98/Black=0.07 (flawless)} 0-1

[Event "2nd Serbia Open Masters 2022"]
[Site "Novi Sad"]
[Date "2022.06.28"]
[Round "1.21"]
[White "Suleymanli, Aydin"]
[Black "Milosevic, Milos"]
[Result "1/2-1/2"]
[ECO "E73"]
[WhiteElo "2537"]
[BlackElo "2288"]
[Annotator "TA"]
[PlyCount "93"]
[EventDate "2022.06.28"]
[EventType "swiss"]
[EventCountry "SRB"]
[SourceTitle "playchess.com"]
[Source "ChessBase"]
[SourceQuality "1"]
[TimeControl "40/5400+30:900+30"]

{[%evp 14,93,9,16,34,0,27,0,6,-30,-25,-33,-23,-29,-5,-19,-8,-37,-12,-18,0,0,17,19,37,-2,10,0,20,20,50,56,185,57,51,57,58,10,71,72,237,104,63,55,55,16,77,0,39,16,16,16,16,26,25,0,20,18,21,17,31,16,31,0,31,7,20,0,0,0,0,0,0,0,0,0,0,0,0,0,0,-91]} 1. d4 {[%emt 0:00:02]} Nf6 {[%emt 0:00:07]} 2. c4 {[%emt 0:00:10]} g6 {[%emt 0:00:06]} 3. h4 {[%emt 0:03:07][%cal Bh2h4,Bh4h5,Bh5h6][%mdl 32]} Bg7 {[%emt 0:00:20]} 4. Nc3 {[%emt 0:00:14]} c5 {[%emt 0:00:19]} 5. d5 {[%emt 0:00:07]} O-O {[%emt 0:00:22]} 6. e4 {[%emt 0:05:01]} d6 {[%emt 0:02:54]} 7. Be2 {[%emt 0:10:03]} e6 {[%emt 0:00:43]} 8. h5 {[%emt 0:02:37]} exd5 {[%emt 0:01:28] E73: King's Indian: Averbakh Variation without 6...c5.} 9. exd5 {[%emt 0:01:59]} Re8 {[%emt 0:00:04]} 10. h6 {[%emt 0:05:41]} Bh8 {[%emt 0:02:07]} 11. Kf1 {[%emt 0:00:20] [#]} Ne4 $146 {[%emt 0:00:17]} ({Predecessor:} 11... a6 12. a4 Ne4 13. Nxe4 Rxe4 14. Qc2 Re8 15. Nf3 Nd7 16. Bg5 Qb6 17. a5 Qxb2 18. Qxb2 Bxb2 {1-0 (90) Giri,A (2764)-Albornoz Cabrera,C (2573) Chess.com INT 2020}) 12. Nxe4 {[%emt 0:00:23]} Rxe4 {[%emt 0:00:04]} 13. Bd3 {[%emt 0:03:10]} Re8 {[%emt 0:00:15][%cal Ob7b5]} 14. Rb1 $1 {[%emt 0:04:55]} Nd7 {[%emt 0:04:16] White should prevent ...Ne5.} 15. Nf3 {[%emt 0:00:27]} b5 {[%emt 0:05:33]} 16. b3 {[%emt 0:00:06]} bxc4 {[%emt 0:03:18]} 17. bxc4 {[%emt 0:00:04]} Qa5 {[%emt 0:02:26]} 18. Qc2 {[%emt 0:05:38]} Qc3 {[%emt 0:01:14]} 19. Qd1 {[%emt 0:04:11]} Qa5 {[%emt 0:03:31]} 20. Rb3 {[%emt 0:00:05]} Qa4 {[%emt 0:01:33]} 21. g3 {[%emt 0:01:12]} Rb8 {[%emt 0:03:03]} 22. Kg2 {[%emt 0:03:19][%cal Od3g6]} Rb6 {[%emt 0:05:33] [#]} (22... Rxb3 $1 $14 23. Qxb3 (23. axb3 Qb4 $14) 23... Nb6) 23. Re1 {[%emt 0:11:39]} (23. Bxg6 $1 $18 {[%mdl 512]} Ne5 24. Nxe5 fxg6 {[#]} 25. Nxg6 $1 {[%mdl 512]} Qxc4 26. Re1) 23... Ne5 $14 {[%emt 0:06:28]} 24. Nxe5 {[%emt 0:00:45]} Bxe5 {[%emt 0:00:57]} 25. Qf3 {[%emt 0:05:59]} (25. Bb2 $14) 25... f5 {[%emt 0:04:58]} (25... Qxa2 $2 26. Rxb6 Qa1 27. Rxd6 $18) (25... Rxb3 $2 26. Rxe5 f5 27. axb3 $18) (25... Qd7 $11) 26. Qe2 $16 {[%emt 0:05:19]} Rf8 $2 {[%emt 0:17:19]} (26... Rxb3 $2 27. axb3 Qxb3 28. f4 $18) (26... Kf8 $16) 27. f4 {[%emt 0:02:51]} (27. Bf4 $18 {has better winning chances.}) 27... Bf6 {[%emt 0:01:34]} 28. Ra3 {[%emt 0:01:13]} Qd7 {[%emt 0:00:14]} 29. Qc2 {[%emt 0:08:44]} Bd4 {[%emt 0:10:39]} (29... Qf7 $11 {remains equal.}) 30. Bf1 {[%emt 0:02:28]} ({White should try} 30. Rb3 $16) 30... a6 {[%emt 0:04:00]} 31. Rb3 {[%emt 0:01:49]} Rxb3 {[%emt 0:00:31]} 32. Qxb3 {[%emt 0:00:28]} Re8 {[%emt 0:00:17]} 33. Rxe8+ {[%emt 0:02:05]} Qxe8 {[%emt 0:00:06]} 34. Bd2 {[%emt 0:02:50] Prevents Qe1.} (34. Bb2 $5 {[%cal Rb2d4]}) 34... Qe4+ {[%emt 0:03:24]} 35. Kh2 {[%emt 0:00:36]} Qe7 {[%emt 0:02:52]} 36. Qb8 {[%emt 0:01:10]} Qd7 {[%emt 0:02:09]} 37. Bd3 {[%emt 0:02:19]} Kf7 {[%emt 0:00:12][%cal Og6g5]} 38. Kg2 {[%emt 0:04:51]} Ke7 {[%emt 0:01:00][%cal Og6g5]} 39. Qb1 {[%emt 0:00:52]} Kf7 {[%emt 0:01:29] The position is equal.} 40. Qc2 {[%emt 0:00:00]} Qe7 {[%emt 0:00:00]} 41. Bc3 {[%emt 0:17:11]} Qe3 {[%emt 0:06:26] And now ...Qg1+ would win.} 42. Bxd4 {[%emt 0:00:00]} Qxd4 {[%emt 0:00:04]} 43. Be2 {[%emt 0:00:00]} Bd7 {[%emt 0:05:43]} 44. Qb3 {[%emt 0:00:00]} Qd2 {[%emt 0:03:15]} 45. Kf2 {[%emt 0:00:00]} Qd4+ {[%emt 0:04:11]} 46. Kf1 {[%emt 0:00:00]} Ke7 {[%emt 0:02:05]} 47. Bf3 {[%emt 0:00:00] Weighted Error Value: White=0.18 (very precise) /Black=0.23 (precise)} (47. Qb8 $11 {keeps the balance.}) 1/2-1/2

[Event "2nd Serbia Open Masters 2022"]
[Site "Novi Sad"]
[Date "2022.06.28"]
[Round "1.23"]
[White "Zanan, Evgeny"]
[Black "Zemlyanskii, Ivan"]
[Result "1-0"]
[ECO "B30"]
[WhiteElo "2534"]
[BlackElo "2286"]
[Annotator "TA"]
[PlyCount "81"]
[EventDate "2022.06.28"]
[EventType "swiss"]
[EventCountry "SRB"]
[SourceTitle "playchess.com"]
[Source "ChessBase"]
[SourceQuality "1"]
[TimeControl "40/5400+30:900+30"]

{[%evp 17,81,15,13,15,7,0,0,10,10,8,0,0,9,0,29,27,60,65,68,75,152,158,172,172,179,167,204,191,235,228,256,240,233,237,352,347,370,309,371,354,444,451,604,401,400,392,484,476,492,451,441,423,433,431,406,400,393,396,462,462,473,476,488,477,498,486]} 1. e4 {[%emt 0:00:23]} c5 {[%emt 0:00:09]} 2. Nf3 {[%emt 0:00:07]} e6 {[%emt 0:00:19]} 3. Nc3 {[%emt 0:00:37]} Nc6 {[%emt 0:00:24]} 4. Bb5 {[%emt 0:01:19]} Nge7 {[%emt 0:00:31]} 5. O-O {[%emt 0:04:13]} a6 {[%emt 0:00:34]} 6. Bxc6 {[%emt 0:01:46]} Nxc6 {[%emt 0:00:01]} 7. d4 {[%emt 0:00:19]} cxd4 {[%emt 0:00:14]} 8. Nxd4 {[%emt 0:00:04]} Be7 {[%emt 0:00:19]} 9. Nxc6 {[%emt 0:04:52]} bxc6 {[%emt 0:00:16]} 10. e5 {[%emt 0:00:44] B30: Sicilian: 2...Nc6 3 Bb5, lines without ...g6.} O-O {[%emt 0:01:14]} 11. Ne4 {[%emt 0:05:04][%cal Bc3e4,Be4d2,Bd2f3,Bf3e5,Be5c6][%mdl 32]} f6 {[%emt 0:03:18]} 12. Bf4 {[%emt 0:09:04] The position is equal.} fxe5 {[%emt 0:07:16]} 13. Bxe5 {[%emt 0:00:20]} d5 {[%emt 1:22:25] [#] aiming for ...Rf5.} 14. Qg4 {[%emt 0:06:03][%csl Ge5][%cal Rg4g7]} Rf7 {[%emt 0:00:00]} 15. Nd2 {[%emt 0:00:38] [#]} Bf6 $146 {[%emt 0:00:00]} ({Predecessor:} 15... Bd6 16. Nf3 Qc7 17. Rfe1 c5 18. Qg3 Bxe5 19. Rxe5 Bd7 20. Ng5 Rf5 21. Rae1 Rxe5 22. Rxe5 {½-½ (56) Heberla,B (2506)-Zurkowski,A (2109) Wroclaw 2008}) 16. Nf3 {[%emt 0:02:14]} Kh8 {[%emt 0:00:00]} 17. Rfe1 {[%emt 0:03:50]} Qf8 {[%emt 0:00:00]} 18. Re3 {[%emt 0:08:17] 0x0.0017639ed623dp-1022s more active pieces. White stays focused until the end.} Bxe5 {[%emt 0:00:00]} (18... Kg8 $142) 19. Nxe5 $16 {[%emt 0:03:17]} (19. Rxe5 $6 Rf6 $14) 19... Rf5 {[%emt 0:00:00]} 20. Qh4 {[%emt 0:02:28]} Rf6 {[%emt 0:00:00] Against Ng6+} 21. Nxc6 $40 {[%emt 0:09:50][%mdl 128] White goes for the king.} ({Resist} 21. Rh3 $6 h6 $16) 21... Rf4 {[%emt 0:00:00]} 22. Qg3 {[%emt 0:02:39]} Bb7 {[%emt 0:00:00]} 23. Rxe6 {[%emt 0:06:05]} d4 {[%emt 0:00:30]} 24. Rae1 {[%emt 0:02:53][%cal Og3f4] Threatens to win with Qxf4!} Bxc6 {[%emt 0:02:09]} 25. Rxc6 {[%emt 0:00:10]} Qf5 {[%emt 0:00:49]} (25... Qb4 {was worth a try.} 26. Rd1 Re4) 26. Rc7 $18 {[%emt 0:04:14][%csl Gc7][%cal Rg3g7] [#]} Rg4 {[%emt 0:01:00]} 27. Qe5 {[%emt 0:00:37]} Qg6 {[%emt 0:00:53]} 28. g3 {[%emt 0:00:28] Black must now prevent Qc5.} Rg5 {[%emt 0:01:36]} 29. Qxd4 {[%emt 0:00:45]} Rf8 {[%emt 0:00:25]} 30. Rc5 {[%emt 0:05:06][%cal Od4f4] Qf4! is the strong threat.} Rg4 {[%emt 0:00:28] Against Qf4} 31. Qd5 {[%emt 0:02:17]} Rb4 {[%emt 0:00:37]} 32. Rc6 {[%emt 0:01:19][%cal Bc5c6,Bc6e6,Be6e4,Be4f4][%mdl 32]} Qg4 {[%emt 0:00:26]} 33. b3 {[%emt 0:02:42]} Rd4 {[%emt 0:00:33]} 34. Qc5 {[%emt 0:04:09][%cal Rc5f8]} Rdd8 {[%emt 0:00:32]} 35. Rce6 {[%emt 0:01:23]} h6 {[%emt 0:00:30]} 36. R6e4 {[%emt 0:01:44]} Qf3 {[%emt 0:00:28]} 37. Qe3 {[%emt 0:00:17]} Qf5 {[%emt 0:00:24]} 38. c4 {[%emt 0:00:46] White is clearly winning.} Qa5 {[%emt 0:00:08]} 39. Re2 {[%emt 0:01:04]} Qh5 {[%emt 0:01:00]} 40. Kg2 {[%emt 0:00:00]} Qf7 {[%emt 0:00:00]} 41. Rf4 {[%emt 0:04:06] Weighted Error Value: White=0.12 (very precise) /Black=0.30} 1-0

[Event "2nd Serbia Open Masters 2022"]
[Site "Novi Sad"]
[Date "2022.06.28"]
[Round "1.24"]
[White "Marn, Jan"]
[Black "Budisavljevic, Luka"]
[Result "1/2-1/2"]
[ECO "A84"]
[WhiteElo "2282"]
[BlackElo "2507"]
[Annotator "TA"]
[PlyCount "87"]
[EventDate "2022.06.28"]
[EventType "swiss"]
[EventCountry "SRB"]
[SourceTitle "playchess.com"]
[Source "ChessBase"]
[SourceQuality "1"]
[TimeControl "40/5400+30:900+30"]

{[%evp 15,87,15,19,12,16,16,18,10,24,29,30,20,41,28,23,18,25,9,10,18,18,32,57,66,106,108,108,87,116,87,178,79,87,87,87,87,87,87,93,93,93,93,94,87,87,87,87,87,87,87,87,87,87,87,98,62,62,62,62,62,93,67,67,0,0,0,0,0,0,0,0,0,0,0]} 1. d4 {[%emt 0:00:03]} e6 {[%emt 0:00:07]} 2. c4 {[%emt 0:00:14]} b6 {[%emt 0:00:13]} 3. Nc3 {[%emt 0:02:53]} Bb4 {[%emt 0:00:59]} 4. Nf3 {[%emt 0:00:26]} Bb7 {[%emt 0:00:51]} 5. Bd2 {[%emt 0:02:10]} f5 {[%emt 0:01:39]} 6. g3 {[%emt 0:03:40]} Nf6 {[%emt 0:03:44]} 7. Bg2 {[%emt 0:00:54]} O-O {[%emt 0:01:47]} 8. O-O {[%emt 0:00:27]} a5 {[%emt 0:00:55]} 9. a3 {[%emt 0:18:48] A84: Dutch Defence: 2 c4 Miscellaneous.} Bxc3 {[%emt 0:00:17]} 10. Bxc3 {[%emt 0:00:09]} Ne4 {[%emt 0:00:38]} 11. Qd3 {[%emt 0:04:49] [#]} a4 $146 {[%emt 0:00:29]} ({Predecessor:} 11... d5 12. cxd5 Bxd5 13. Rac1 Nd7 14. Nd2 Ndf6 15. f3 Nxc3 16. Rxc3 Rb8 17. Rfc1 c5 18. dxc5 bxc5 {½-½ (36) Wegelin,R (2370)-Girard,E (2404) ICCF email 2012}) 12. Nd2 {[%emt 0:01:35][%cal Rd2e4]} d5 {[%emt 0:02:31]} 13. Nxe4 {[%emt 0:14:51]} dxe4 {[%emt 0:00:06]} 14. Qc2 {[%emt 0:00:25]} Nd7 {[%emt 0:01:44]} 15. Rfd1 {[%emt 0:03:01]} Qe8 {[%emt 0:05:01]} 16. Bb4 {[%emt 0:07:11]} c5 {[%emt 0:06:29]} 17. dxc5 {[%emt 0:00:22]} bxc5 {[%emt 0:00:10]} 18. Bc3 {[%emt 0:00:06]} e5 {[%emt 0:04:23]} 19. Rd6 {[%emt 0:04:52]} Ra7 {[%emt 0:14:00]} 20. Rad1 {[%emt 0:00:55] White is more active.} Nf6 {[%emt 0:00:22]} 21. e3 {[%emt 0:08:12]} Ba8 {[%emt 0:13:52]} 22. Qd2 {[%emt 0:03:42]} Qe7 {[%emt 0:13:03]} (22... Bc6 $16) 23. Rd8 {[%emt 0:02:19]} (23. Bf1 $18 {is more deadly.}) 23... Bc6 {[%emt 0:01:50]} 24. Rxf8+ {[%emt 0:00:56]} Kxf8 {[%emt 0:00:07]} 25. Qd6 {[%emt 0:03:06]} Rd7 {[%emt 0:00:46]} 26. Bxe5 {[%emt 0:00:11]} Ne8 {[%emt 0:04:37][%mdl 64] [#] Pin} (26... Rxd6 $2 27. Bxd6 g6 28. Bxe7+ $18) 27. Qxe7+ {[%emt 0:00:37]} Kxe7 {[%emt 0:00:01]} 28. Rxd7+ {[%emt 0:04:48]} Kxd7 $16 {[%emt 0:00:02][%mdl 4096] Endgame KBB-KBN} 29. Kf1 {[%emt 0:03:12]} Ke6 {[%emt 0:00:03]} 30. Bc3 {[%emt 0:00:06]} g5 {[%emt 0:01:46]} 31. Ke1 {[%emt 0:01:42]} Nd6 {[%emt 0:03:57]} 32. Bf1 {[%emt 0:01:13]} Bb7 {[%emt 0:00:02]} 33. Be2 {[%emt 0:00:37]} g4 {[%emt 0:00:12]} 34. Bg7 {[%emt 0:01:10]} Ke7 {[%emt 0:04:18]} 35. Bd1 {[%emt 0:04:41]} Bc6 {[%emt 0:00:44]} 36. b3 {[%emt 0:00:05]} axb3 {[%emt 0:02:31]} 37. Bxb3 {[%emt 0:00:04]} Nf7 {[%emt 0:05:01]} 38. a4 {[%emt 0:00:07]} Bb7 {[%emt 0:03:34]} 39. a5 {[%emt 0:02:20]} (39. Kd2 $14) 39... Ba6 $1 $11 {[%emt 0:00:14] The position is equal.} 40. Bb2 {[%emt 0:00:00]} Nd6 {[%emt 0:00:00]} 41. Be5 {[%emt 0:10:29]} Nxc4 {[%emt 0:01:36]} 42. Bxc4 {[%emt 0:00:14]} Bxc4 {[%emt 0:00:05]} 43. Kd2 {[%emt 0:00:03]} Ke6 {[%emt 0:00:11]} 44. Bg7 {[%emt 0:00:06] Weighted Error Value: White=0.10 (very precise) /Black=0.08 (flawless)} 1/2-1/2